bitfinex/quotes_ETHUSD_20250720
["timestamp","ask_amount","ask_price","bid_price","bid_amount"]
[1753004947076,37.55683381,3711.1,3711.0,5.28336358]
[1753004947831,38.02923381,3711.1,3711.0,5.28336358]
[1753004948131,38.02923381,3711.1,3711.0,9.53136358]
[1753004948294,39.25923381,3711.1,3711.0,9.53136358]
[1753004948493,41.95385265,3711.1,3711.0,9.53136358]
[1753004948899,39.25923381,3711.1,3711.0,9.53136358]
[1753004949204,38.78683381,3711.1,3711.0,9.53136358]
[1753004949926,40.01683381,3711.1,3711.0,12.22605503]
[1753004951125,41.24683381,3711.1,3711.0,12.22605503]
[1753004952390,42.47683381,3711.1,3711.0,12.22605503]
[1753004953826,43.70683381,3711.1,3711.0,12.22605503]
[1753004954620,43.70683381,3711.1,3711.0,12.68285503]
[1753004954987,43.70683381,3711.1,3711.0,12.68385503]
[1753004955189,44.93883381,3711.1,3711.0,12.68385503]
[1753004955679,44.93883381,3711.1,3711.0,12.22705503]
[1753004955899,44.93883381,3711.1,3711.0,12.68385503]
[1753004956485,46.16883381,3711.1,3711.0,12.68385503]
[1753004957912,47.39883381,3711.1,3711.0,12.68385503]
[1753004959541,48.62883381,3711.1,3711.0,5.28436358]
[1753004959736,49.10123381,3711.1,3711.0,6.37896358]
[1753004960121,49.10123381,3711.1,3711.0,9.37896358]
[1753004960938,48.62883381,3711.1,3711.0,9.37896358]
[1753004961238,49.85883381,3711.1,3711.0,9.37896358]
[1753004961545,50.33123381,3711.1,3711.0,9.37896358]
[1753004962636,51.56123381,3711.1,3711.0,9.37896358]
[1753004963436,51.08883381,3711.1,3711.0,12.07365503]
[1753004963637,51.08883381,3711.1,3711.0,9.37896358]
[1753004963840,52.31883381,3711.1,3711.0,9.37896358]
[1753004964393,52.31883381,3711.1,3711.0,12.07365503]
[1753004964593,52.31883381,3711.1,3711.0,13.59385503]
[1753004964798,52.31883381,3711.1,3711.0,14.05065503]
[1753004965295,53.54883381,3711.1,3711.0,13.59385503]
[1753004966720,53.54883381,3711.1,3711.0,9.36485503]
[1753004966955,54.77883381,3711.1,3711.0,13.58585503]
[1753004967422,54.77883381,3711.1,3711.0,9.37096358]
[1753004968250,56.00883381,3711.1,3711.0,12.06565503]
[1753004968757,56.00883381,3711.1,3711.0,9.37096358]
[1753004969156,56.00883381,3711.1,3711.0,5.14996358]
[1753004969367,56.45533381,3711.1,3711.0,9.36896358]
[1753004969525,57.68533381,3711.1,3711.0,9.36896358]
[1753004969725,57.68533381,3711.1,3711.0,9.50336358]
[1753004970822,58.91533381,3711.1,3711.0,9.50336358]
[1753004971526,58.46883381,3711.1,3711.0,9.50336358]
[1753004972335,59.69883381,3711.1,3711.0,9.50336358]
[1753004972532,59.69883381,3711.1,3711.0,12.19805503]
[1753004973162,59.69883381,3711.1,3711.0,15.67096964]
[1753004973666,60.92883381,3711.1,3711.0,15.67096964]
[1753004974960,62.15883381,3711.1,3711.0,15.67096964]
[1753004976246,62.15883381,3711.1,3711.0,17.20556964]
[1753004976447,63.38883381,3711.1,3711.0,17.20556964]
[1753004977464,55.3587229,3711.1,3711.0,17.20556964]
[1753004977968,56.5887229,3711.1,3711.0,17.20556964]
[1753004979289,49.1764603,3711.1,3711.0,17.20556964]
[1753004979651,48.85328511,3711.1,3711.0,17.20556964]
[1753004980545,1e-08,3711.1,3711.0,17.20556964]
[1753004980740,57.53252317,3711.4,3711.3,3.74447363]
[1753004980960,0.002,3712.6,3712.3,5.69374781]
[1753004981146,0.002,3712.6,3712.3,19.87466242]
[1753004981454,0.002,3712.6,3712.3,20.33325307]
[1753004983175,0.002,3712.6,3712.3,21.84757823]
[1753004983357,23.84641125,3712.4,3712.3,21.84757823]
[1753004986080,25.07641125,3712.4,3712.3,21.84757823]
[1753004987046,25.07641125,3712.4,3712.3,21.98533959]
[1753004987379,26.30641125,3712.4,3712.3,21.98533959]
[1753004988680,27.53641125,3712.4,3712.3,21.8679973]
[1753004990085,28.76641125,3712.4,3712.3,21.8679973]
[1753004991587,29.99641125,3712.4,3712.3,21.8679973]
[1753004992126,29.99641125,3712.4,3712.3,12.63675753]
[1753004992287,29.99641125,3712.4,3712.3,16.72399617]
[1753004992463,34.80417443,3712.4,3712.3,0.20684836]
[1753004992666,34.80417443,3712.4,3712.3,4.225]
[1753004992998,34.80417443,3712.4,3712.3,4.249]
[1753004993205,36.03417443,3712.4,3712.3,4.249]
[1753004993366,33.27521125,3712.4,3712.3,4.249]
[1753004993555,33.27521125,3712.4,3711.6,2.6942013]
[1753004993750,1.6023,3712.2,3711.3,2.38363923]
[1753004993993,1.6023,3712.0,3711.4,4.247]
[1753004994292,0.4465,3711.9,3711.4,4.247]
[1753004994791,0.4465,3711.9,3711.3,2.38363923]
[1753004995087,0.4465,3711.9,3711.4,4.25]
[1753004995507,0.4465,3711.8,3711.5,3.0]
[1753004995655,2.8323,3712.0,3711.7,3.0]
[1753004995861,2.8323,3712.0,3711.9,3.0]
[1753004996501,3.2788,3712.0,3711.9,3.0]
[1753004996799,1.6663,3711.9,3711.4,2.54271125]
[1753004996986,1.6663,3711.7,3711.4,2.54271125]
[1753004997188,0.4465,3711.6,3711.5,4.248]
[1753004997397,2.1128,3711.6,3711.5,4.248]
[1753004998625,3.3428,3711.6,3711.5,4.248]
[1753005000012,2.46,3711.6,3711.5,7.748]
[1753005000225,1.23,3711.9,3711.8,2.69411067]
[1753005000373,1.23,3711.9,3711.8,10.00605177]
[1753005000569,1.23,3711.9,3711.8,9.97911067]
[1753005000884,1.23,3711.9,3711.8,10.43541067]
[1753005001285,31.22641125,3712.4,3712.3,2.69374781]
[1753005001472,31.22641125,3712.4,3712.3,10.43304781]
[1753005002495,31.22641125,3712.4,3712.3,10.56744781]
[1753005002824,32.45641125,3712.4,3712.3,10.56744781]
[1753005004127,33.68641125,3712.4,3712.3,10.11114781]
[1753005004789,33.68641125,3712.4,3712.3,10.56744781]
[1753005004991,33.68641125,3712.4,3712.3,5.82814781]
[1753005005188,33.68641125,3712.4,3712.3,10.10314781]
[1753005005413,34.91641125,3712.4,3712.3,10.10314781]
[1753005007171,36.14641125,3712.4,3712.3,10.10314781]
[1753005008497,37.37641125,3712.4,3712.3,10.10314781]
[1753005009944,38.60641125,3712.4,3712.3,10.55944781]
[1753005011315,39.83641125,3712.4,3712.3,10.55944781]
[1753005012735,41.06641125,3712.4,3712.3,10.55944781]
[1753005014223,42.29641125,3712.4,3712.3,10.55944781]
[1753005015660,42.29641125,3712.4,3712.3,10.75735914]
[1753005015961,43.52641125,3712.4,3712.3,10.75735914]
[1753005017027,43.52641125,3712.4,3712.3,10.30105914]
[1753005017243,44.75641125,3712.4,3712.3,10.30105914]
[1753005017446,1e-08,3712.4,3712.3,10.75735914]
[1753005018281,1e-08,3712.4,3712.3,17.21835914]
[1753005018439,1e-08,3712.4,3712.3,17.76835914]
[1753005018633,1.23000001,3712.4,3712.3,17.76835914]
[1753005018862,1.23000001,3712.4,3712.3,18.05752417]
[1753005019050,0.002,3712.6,3712.5,2.69360269]
[1753005019256,0.002,3712.6,3712.5,14.52467848]
[1753005019446,0.002,3712.6,3712.5,14.63214246]
[1753005019652,0.002,3712.6,3712.5,16.46212641]
[1753005020048,1.232,3712.6,3712.5,16.46212641]
[1753005021475,2.462,3712.6,3712.5,16.46212641]
[1753005022683,2.462,3712.6,3712.5,17.01212641]
[1753005022980,3.692,3712.6,3712.5,7.20168664]
[1753005023185,3.692,3712.6,3712.5,11.44668664]
[1753005024246,4.922,3712.6,3712.5,11.44668664]
[1753005025571,6.152,3712.6,3712.5,11.90298664]
[1753005026793,6.152,3712.6,3712.5,12.45298664]
[1753005026950,7.382,3712.6,3712.5,12.45298664]
[1753005028058,7.382,3712.6,3712.5,11.98868664]
[1753005028477,8.612,3712.6,3712.5,11.98868664]
[1753005029085,8.612,3712.6,3712.5,15.02455647]
[1753005030280,9.842,3712.6,3712.5,15.02455647]
[1753005031072,9.842,3712.6,3712.5,15.01855647]
[1753005031580,1e-08,3712.6,3712.5,15.01855647]
[1753005031784,0.002,3712.8,3712.7,2.69345759]
[1753005031984,0.002,3712.8,3712.7,9.95039216]
[1753005032185,0.002,3712.8,3712.7,12.59346508]
[1753005032879,1.232,3712.8,3712.7,12.59346508]
[1753005033183,0.002,3713.2,3712.7,12.59346508]
[1753005033184,0.002,3713.2,3712.8,6.24338504]
[1753005033685,0.002,3713.2,3712.8,8.77892424]
[1753005034266,1.232,3712.9,3712.8,8.77892424]
[1753005035150,0.002,3713.2,3713.1,2.69316743]
[1753005035350,0.002,3713.2,3713.1,13.08943726]
[1753005035679,1.232,3713.2,3713.1,15.6247716]
[1753005035862,1.6772,3713.2,3713.1,15.6247716]
[1753005036852,2.462,3713.2,3713.1,15.6247716]
[1753005037496,4.518,3713.2,3713.1,12.58390177]
[1753005038197,5.748,3713.2,3713.1,12.58390177]
[1753005038990,5.748,3713.2,3713.1,8.36290177]
[1753005039290,5.748,3713.2,3713.1,19.04390177]
[1753005039531,6.978,3713.2,3713.1,19.04390177]
[1753005041030,8.208,3713.2,3713.1,19.04390177]
[1753005042205,9.438,3713.2,3713.1,19.04390177]
[1753005043518,7.382,3713.2,3713.1,18.90150177]
[1753005043675,9.0572,3713.2,3713.1,18.90150177]
[1753005044496,9.0572,3713.2,3713.1,14.68850177]
[1753005044705,9.0572,3713.2,3713.1,18.90350177]
[1753005045208,10.2872,3713.2,3713.1,18.90350177]
[1753005046408,9.842,3713.2,3713.1,18.90350177]
[1753005046704,11.072,3713.2,3713.1,18.90350177]
[1753005047804,11.5172,3713.2,3713.1,18.90350177]
[1753005048109,12.7472,3713.2,3713.1,14.68850177]
[1753005048310,12.7472,3713.2,3713.1,18.89850177]
[1753005049383,13.9772,3713.2,3713.1,18.89850177]
[1753005049881,13.532,3713.2,3713.1,18.89850177]
[1753005050518,13.532,3713.2,3713.1,14.68850177]
[1753005050680,14.762,3713.2,3713.1,14.68850177]
[1753005051008,14.762,3713.2,3713.1,18.89250177]
[1753005051796,14.762,3713.2,3713.1,14.68850177]
[1753005051991,14.762,3713.2,3713.1,18.89150177]
[1753005052206,15.992,3713.2,3713.1,18.89150177]
[1753005052441,12.24925981,3713.2,3713.1,18.89150177]
[1753005053312,12.24925981,3713.2,3713.1,19.02590177]
[1753005053514,13.47925981,3713.2,3713.1,19.02590177]
[1753005054558,13.47925981,3713.2,3713.1,14.82290177]
[1753005054795,13.92445981,3713.2,3713.1,19.03290177]
[1753005054916,15.15445981,3713.2,3713.1,19.03290177]
[1753005055363,15.15445981,3713.2,3713.1,19.03190177]
[1753005055729,15.15445981,3713.2,3713.1,19.03090177]
[1753005056438,16.38445981,3713.2,3713.1,19.03090177]
[1753005056946,0.002,3714.0,3713.8,2.6926598]
[1753005057145,0.002,3714.0,3713.8,12.96345622]
[1753005057358,0.002,3714.0,3713.8,15.58743498]
[1753005057559,1e-08,3714.0,3713.9,5.6925873]
[1753005057755,0.002,3714.7,3713.9,5.6925873]
[1753005057756,0.002,3714.7,3714.6,5.6920799]
[1753005057960,0.002,3714.7,3714.6,9.9060799]
[1753005058160,0.002,3714.7,3714.6,12.11770884]
[1753005059279,0.002,3714.7,3714.6,12.11570884]
[1753005059481,0.002,3714.7,3714.6,12.11470884]
[1753005059482,1.9433,3714.7,3714.6,12.11470884]
[1753005059683,3.1733,3714.7,3714.6,12.11470884]
[1753005059906,3.1733,3714.7,3714.6,2.21162894]
[1753005060082,3.1733,3714.7,3714.6,6.42262894]
[1753005060247,3.49063,3714.7,3714.6,6.42262894]
[1753005060448,3.1733,3714.7,3714.6,9.42262894]
[1753005060856,4.4033,3714.7,3714.6,12.11470884]
[1753005061974,3.9659,3714.7,3714.6,12.11470884]
[1753005062169,2.462,3714.7,3714.6,12.11470884]
[1753005062465,3.692,3714.7,3714.6,12.11470884]
[1753005063087,3.692,3714.7,3714.6,12.31722283]
[1753005063258,3.692,3714.7,3714.6,15.35309266]
[1753005063766,4.922,3714.7,3714.6,15.35309266]
[1753005064090,4.922,3714.7,3714.6,12.31722283]
[1753005064260,5.3594,3714.7,3714.6,9.62514293]
[1753005064460,6.9804,3714.7,3714.6,9.62314293]
[1753005064654,6.9804,3714.7,3714.6,5.41414293]
[1753005065200,8.2104,3714.7,3714.6,9.62114293]
[1753005065559,8.2104,3714.7,3714.6,12.31322283]
[1753005065883,8.2104,3714.7,3714.6,12.81322283]
[1753005066255,8.2104,3714.7,3714.6,5.91414293]
[1753005066605,9.4404,3714.7,3714.6,12.81222283]
[1753005066995,9.4404,3714.7,3714.6,12.94662283]
[1753005067711,10.6704,3714.7,3714.6,12.94662283]
[1753005068113,10.6704,3714.7,3714.6,10.25454293]
[1753005068322,10.6704,3714.7,3714.6,12.94662283]
[1753005068516,10.6704,3714.7,3714.6,10.25454293]
[1753005068822,8.612,3714.7,3714.6,13.29041276]
[1753005069133,1e-08,3714.7,3714.6,17.29640131]
[1753005070346,1.23,3715.4,3715.3,2.69157268]
[1753005070624,1.23,3715.4,3715.3,9.90557268]
[1753005070799,1.23,3715.4,3715.3,12.57380573]
[1753005071004,1.6674,3715.4,3715.3,12.57380573]
[1753005072006,2.8974,3715.4,3715.3,9.88223305]
[1753005072213,2.8974,3715.4,3715.3,12.57380573]
[1753005073628,4.1274,3715.4,3715.3,12.57380573]
[1753005073802,3.69,3715.4,3715.3,12.57380573]
[1753005074319,4.1274,3715.4,3715.3,12.57380573]
[1753005075034,4.92,3715.4,3715.3,12.57380573]
[1753005076411,6.15,3715.4,3715.3,12.43940573]
[1753005077840,7.38,3715.4,3715.3,12.43940573]
[1753005079233,8.61,3715.4,3715.3,12.43940573]
[1753005080418,8.61,3715.4,3715.3,12.90450573]
[1753005080639,9.84,3715.4,3715.3,12.43940573]
[1753005080827,9.84,3715.4,3715.3,13.45450573]
[1753005081148,9.84,3715.4,3715.3,8.22540573]
[1753005081526,9.84,3715.4,3715.3,12.62529917]
[1753005081943,11.07,3715.4,3715.3,12.62529917]
[1753005082138,11.07,3715.4,3715.3,8.42429917]
[1753005082338,11.07,3715.4,3715.3,12.62429917]
[1753005083781,12.3,3715.4,3715.3,12.62429917]
[1753005084164,12.3,3715.4,3715.3,13.08939917]
[1753005084346,12.3,3715.4,3715.3,13.17429917]
[1753005085083,12.65583607,3715.4,3715.3,13.17429917]
[1753005086385,12.65583607,3715.4,3715.3,13.30869917]
[1753005086581,13.88583607,3715.4,3715.3,13.30869917]
[1753005087170,0.002,3716.2,3716.1,2.69099324]
[1753005087486,0.002,3716.2,3716.1,6.73428757]
[1753005087687,0.002,3716.2,3716.1,12.42528081]
[1753005087899,2.0119,3716.2,3716.1,9.73428757]
[1753005088065,3.2419,3716.2,3716.1,5.53328757]
[1753005088269,3.2419,3716.2,3716.1,9.73528757]
[1753005088488,3.2419,3716.2,3716.1,5.53328757]
[1753005088651,3.2419,3716.2,3716.1,9.73528757]
[1753005089380,4.4719,3716.2,3716.1,9.73528757]
[1753005090666,5.7019,3716.2,3716.1,12.42628081]
[1753005092051,6.9319,3716.2,3716.1,12.42628081]
[1753005093790,8.1619,3716.2,3716.1,12.42628081]
[1753005094085,8.1619,3716.2,3716.1,9.72928757]
[1753005094489,8.1619,3716.2,3716.1,5.53328757]
[1753005094789,8.1619,3716.2,3716.1,9.72828757]
[1753005094990,9.3919,3716.2,3716.1,9.72828757]
[1753005095189,7.8215,3716.2,3716.1,2.53328757]
[1753005095394,9.4422,3716.2,3716.1,6.72728757]
[1753005095686,9.4422,3716.2,3716.1,9.72728757]
[1753005096399,10.6722,3716.2,3716.1,5.53328757]
[1753005096753,10.6722,3716.2,3716.1,9.72628757]
[1753005096978,10.6722,3716.2,3716.1,5.53328757]
[1753005097263,10.6722,3716.2,3716.1,9.85968757]
[1753005097829,11.9022,3716.2,3716.1,9.85968757]
[1753005098602,14.59312083,3716.2,3716.1,9.85968757]
[1753005098824,11.9022,3716.2,3716.1,9.85968757]
[1753005099133,11.072,3716.2,3716.1,12.41628081]
[1753005099318,11.072,3716.2,3716.1,9.72528757]
[1753005099627,11.5115,3716.2,3716.1,12.41628081]
[1753005099798,11.5115,3716.2,3716.1,9.72528757]
[1753005100402,18.30023083,3716.2,3716.1,2.53328757]
[1753005100589,14.3021,3716.2,3716.1,6.72428757]
[1753005101010,14.3021,3716.2,3716.1,9.72428757]
[1753005101535,14.3021,3716.2,3716.1,9.73028757]
[1753005101890,15.5321,3716.2,3716.1,9.73028757]
[1753005102630,13.9715,3716.2,3716.1,9.73028757]
[1753005103191,15.2015,3716.2,3716.1,9.73028757]
[1753005104493,16.4315,3716.2,3716.1,9.73028757]
[1753005104890,18.0656,3716.2,3716.1,5.53328757]
[1753005105120,18.0656,3716.2,3716.1,9.72828757]
[1753005105499,17.6261,3716.2,3716.1,9.72828757]
[1753005105910,19.2956,3716.2,3716.1,9.72828757]
[1753005107234,20.5256,3716.2,3716.1,9.72828757]
[1753005108842,21.7556,3716.2,3716.1,9.72828757]
[1753005109006,21.7556,3716.2,3716.1,12.41928081]
[1753005109201,21.7556,3716.2,3716.1,12.55368081]
[1753005110219,22.9856,3716.2,3716.1,12.55368081]
[1753005111040,22.9856,3716.2,3716.1,9.86268757]
[1753005111343,22.9856,3716.2,3716.1,12.55368081]
[1753005111509,24.2156,3716.2,3716.1,12.55368081]
[1753005112941,25.4456,3716.2,3716.1,12.55368081]
[1753005113143,25.4456,3716.2,3716.1,5.66768757]
[1753005113444,25.4456,3716.2,3716.1,12.54768081]
[1753005114057,26.6756,3716.2,3716.1,12.54768081]
[1753005114901,24.602,3716.2,3716.1,12.54268081]
[1753005115542,26.2715,3716.2,3716.1,12.54268081]
[1753005116752,25.832,3716.2,3716.1,12.54268081]
[1753005116955,27.062,3716.2,3716.1,12.54268081]
[1753005118246,28.292,3716.2,3716.1,12.54268081]
[1753005119560,24.69810613,3716.2,3716.1,15.44415064]
[1753005119922,25.13610613,3716.2,3716.1,12.40428081]
[1753005120173,24.69810613,3716.2,3716.1,5.53328757]
[1753005120320,25.13610613,3716.2,3716.1,9.71328757]
[1753005120520,25.13610613,3716.2,3716.1,12.40428081]
[1753005120949,25.92810613,3716.2,3716.1,12.40428081]
[1753005122076,1e-08,3717.0,3716.9,2.69041405]
[1753005122382,1e-08,3717.0,3716.9,7.252]
[1753005122578,1e-08,3717.0,3716.9,12.36351105]
[1753005123762,1.23000001,3717.0,3716.9,12.36351105]
[1753005123951,1.23000001,3717.0,3716.9,9.673097]
[1753005124480,3.25360001,3717.0,3716.9,5.421097]
[1753005124682,3.25360001,3717.0,3716.9,6.680097]
[1753005124847,3.25360001,3717.0,3716.9,6.677097]
[1753005125244,7.76833363,3717.0,3716.9,2.421097]
[1753005125449,7.76833363,3717.0,3716.9,6.678097]
[1753005125649,7.76833363,3717.0,3716.9,9.678097]
[1753005125844,7.76833363,3717.0,3716.9,2.421097]
[1753005126363,7.76833363,3717.0,3716.9,6.675097]
[1753005126776,8.99833363,3717.0,3716.9,6.675097]
[1753005127787,8.99833363,3717.0,3716.9,7.175097]
[1753005128148,10.22833363,3717.0,3716.9,7.175097]
[1753005129482,10.22833363,3717.0,3716.9,7.309497]
[1753005129685,8.76799196,3717.0,3716.9,7.309497]
[1753005130101,11.45833363,3717.0,3716.9,7.309497]
[1753005130462,11.45833363,3717.0,3716.9,7.306497]
[1753005131198,12.68833363,3717.0,3716.9,3.055497]
[1753005131490,12.68833363,3717.0,3716.9,7.169097]
[1753005131690,12.68833363,3717.0,3716.9,7.168097]
[1753005132358,13.91833363,3717.0,3716.9,7.168097]
[1753005133896,15.14833363,3717.0,3716.9,7.168097]
[1753005134083,15.69833363,3717.0,3716.9,7.168097]
[1753005134685,15.14833363,3717.0,3716.9,7.168097]
[1753005135057,16.37833363,3717.0,3716.9,7.168097]
[1753005136385,17.60833363,3717.0,3716.9,7.168097]
[1753005137697,18.83833363,3717.0,3716.9,7.168097]
[1753005139261,20.06833363,3717.0,3716.9,7.168097]
[1753005140790,21.29833363,3717.0,3716.9,7.168097]
[1753005141786,21.29833363,3717.0,3716.9,2.921097]
[1753005142109,22.52833363,3717.0,3716.9,7.154097]
[1753005142310,22.52833363,3717.0,3716.9,2.921097]
[1753005142533,22.52833363,3717.0,3716.9,7.151097]
[1753005143312,22.52833363,3717.0,3716.9,2.921097]
[1753005143483,23.75833363,3717.0,3716.9,7.149097]
[1753005144889,24.98833363,3717.0,3716.9,7.149097]
[1753005146192,26.21833363,3717.0,3716.9,7.149097]
[1753005147725,27.44833363,3717.0,3716.9,7.149097]
[1753005148083,27.44833363,3717.0,3716.9,7.142097]
[1753005149100,28.67833363,3717.0,3716.9,7.142097]
[1753005149789,26.52864168,3717.0,3716.9,7.142097]
[1753005150391,27.75864168,3717.0,3716.9,7.142097]
[1753005150589,27.75864168,3717.0,3716.9,2.922097]
[1753005150830,29.31924168,3717.0,3716.9,7.145097]
[1753005152032,30.54924168,3717.0,3716.9,7.145097]
[1753005153298,33.30820486,3717.0,3716.9,7.145097]
[1753005153526,34.53820486,3717.0,3716.9,7.145097]
[1753005154850,34.53820486,3717.0,3716.9,7.139097]
[1753005155033,35.76820486,3717.0,3716.9,7.139097]
[1753005156546,36.99820486,3717.0,3716.9,7.139097]
[1753005157044,0.55,3716.8,3716.0,3.0]
[1753005157247,2.69099324,3716.1,3716.0,3.0]
[1753005157428,2.69099324,3716.1,3716.0,7.214]
[1753005157743,2.69099324,3716.1,3716.0,7.3484]
[1753005157948,4.38929324,3716.1,3716.0,0.1344]
[1753005158111,2.69135536,3715.6,3715.5,6.456]
[1753005158309,2.69135536,3715.6,3715.5,10.671]
[1753005158509,2.69135536,3715.6,3715.5,10.8054]
[1753005159245,1.23,3716.1,3716.0,2.69106566]
[1753005159430,1.23,3716.1,3716.0,7.6615]
[1753005159630,1.23,3716.1,3716.0,7.3484]
[1753005159813,1.23,3716.1,3716.0,10.03946566]
[1753005160651,1.23,3716.1,3716.0,10.48696566]
[1753005160805,2.46,3716.1,3716.0,10.48696566]
[1753005162422,3.69,3716.1,3716.0,10.48696566]
[1753005164347,4.92,3716.1,3716.0,10.48696566]
[1753005165656,6.15,3716.1,3716.0,10.48696566]
[1753005166040,6.15,3716.1,3716.0,10.03946566]
[1753005166357,6.15,3716.1,3716.0,10.48696566]
[1753005167058,7.38,3716.1,3716.0,10.48696566]
[1753005168656,8.61,3716.1,3716.0,10.48696566]
[1753005169939,9.84,3716.1,3716.0,10.48696566]
[1753005171466,11.07,3716.1,3716.0,10.48696566]
[1753005172975,12.3,3716.1,3716.0,10.48696566]
[1753005173146,12.3,3716.1,3716.0,10.48796566]
[1753005174347,13.53,3716.1,3716.0,10.48796566]
[1753005175662,14.76,3716.1,3716.0,10.48796566]
[1753005176062,14.76,3716.1,3716.0,0.1354]
[1753005176370,14.76,3716.1,3716.0,4.3304]
[1753005176670,14.76,3716.1,3716.0,3.1354]
[1753005176873,14.76,3716.1,3716.0,7.3294]
[1753005177167,15.99,3716.1,3716.0,7.3294]
[1753005177763,15.99,3716.1,3716.0,3.1354]
[1753005177928,15.99,3716.1,3716.0,10.01946566]
[1753005178333,17.22,3716.1,3716.0,7.3284]
[1753005178533,17.22,3716.1,3716.0,10.01946566]
[1753005179863,18.45,3716.1,3716.0,10.01946566]
[1753005180683,18.45,3716.1,3716.0,13.51583549]
[1753005181137,19.68,3716.1,3716.0,13.51583549]
[1753005181790,1e-08,3716.1,3716.0,13.51583549]
[1753005182380,28.64800305,3717.0,3716.9,2.69041405]
[1753005182618,28.64800305,3717.0,3716.9,9.87841405]
[1753005182781,28.64800305,3717.0,3716.9,10.01281405]
[1753005184013,29.87800305,3717.0,3716.9,10.01281405]
[1753005185673,29.87800305,3717.0,3716.9,7.3224]
[1753005185869,31.57850305,3717.0,3716.9,7.3224]
[1753005186619,31.57850305,3717.0,3716.9,7.3194]
[1753005186817,31.57850305,3717.0,3716.9,10.00981405]
[1753005187223,32.80850305,3717.0,3716.9,10.00981405]
[1753005187404,32.33800305,3717.0,3716.9,10.00981405]
[1753005187713,32.80850305,3717.0,3716.9,10.00981405]
[1753005188075,32.80850305,3717.0,3716.9,7.3194]
[1753005188276,34.42580305,3717.0,3716.9,0.1344]
[1753005188599,38.41476623,3717.0,3716.9,4.3174]
[1753005188786,41.1051079,3717.0,3716.9,4.3174]
[1753005189309,38.41476623,3717.0,3716.9,4.3174]
[1753005189990,39.64476623,3717.0,3716.9,4.3174]
[1753005191419,40.87476623,3717.0,3716.9,4.3174]
[1753005191942,36.02800305,3717.0,3716.9,10.00781405]
[1753005193545,37.25800305,3717.0,3716.9,10.00781405]
[1753005195329,38.48800305,3717.0,3716.9,10.00781405]
[1753005196502,38.49000305,3717.0,3716.9,10.00781405]
[1753005196697,39.72000305,3717.0,3716.9,10.00781405]
[1753005197616,40.19050305,3717.0,3716.9,10.00781405]
[1753005198016,41.42050305,3717.0,3716.9,10.00781405]
[1753005198440,40.95000305,3717.0,3716.9,10.00781405]
[1753005199518,42.18000305,3717.0,3716.9,10.00781405]
[1753005200797,43.41000305,3717.0,3716.9,10.00781405]
[1753005201510,43.41000305,3717.0,3716.9,10.46831405]
[1753005201898,43.41000305,3717.0,3716.9,10.00781405]
[1753005202420,44.64000305,3717.0,3716.9,10.00781405]
[1753005203713,45.87000305,3717.0,3716.9,10.00781405]
[1753005204326,46.34050305,3717.0,3716.9,10.00781405]
[1753005204845,45.87000305,3717.0,3716.9,10.00781405]
[1753005205154,47.10000305,3717.0,3716.9,10.00781405]
[1753005205728,49.10650305,3717.0,3716.9,10.00781405]
[1753005205912,50.07025121,3717.0,3716.9,0.1344]
[1753005206113,52.76059288,3717.0,3716.9,0.1344]
[1753005206314,51.30025121,3717.0,3716.9,4.3104]
[1753005206854,53.99059288,3717.0,3716.9,4.3104]
[1753005207761,52.53025121,3717.0,3716.9,4.3104]
[1753005209239,53.76025121,3717.0,3716.9,4.3104]
[1753005209442,53.76025121,3717.0,3716.9,7.176]
[1753005209443,50.79000305,3717.0,3716.9,7.176]
[1753005209917,51.23800305,3717.0,3716.6,2.69062749]
[1753005210243,0.448,3716.9,3716.7,9.86655603]
[1753005210448,1.23,3716.9,3716.7,9.86655603]
[1753005210754,0.448,3716.8,3716.7,9.86655603]
[1753005211061,1.23,3716.9,3716.7,9.86655603]
[1753005211226,1.23,3716.9,3716.7,7.176]
[1753005211416,0.448,3716.8,3716.7,7.176]
[1753005211816,0.448,3716.8,3716.7,4.176]
[1753005212052,1.678,3716.8,3716.7,4.176]
[1753005213061,3.2657,3716.8,3716.7,4.176]
[1753005213726,4.4957,3716.8,3716.7,4.176]
[1753005213930,2.908,3716.8,3716.7,4.176]
[1753005214954,2.46,3716.8,3716.7,6.86655882]
[1753005215261,3.69,3716.8,3716.7,9.86655882]
[1753005216564,4.92,3716.8,3716.7,9.86655882]
[1753005217866,6.15,3716.8,3716.7,9.86655882]
[1753005219244,7.38,3716.8,3716.7,12.90242865]
[1753005219427,7.38,3716.8,3716.7,13.49432865]
[1753005220780,8.61,3716.8,3716.7,13.49432865]
[1753005221854,8.61,3716.8,3716.7,10.00095882]
[1753005222068,9.84,3716.8,3716.7,10.45845882]
[1753005223282,9.84,3716.8,3716.7,10.00095882]
[1753005223569,11.07,3716.8,3716.7,10.45845882]
[1753005224786,12.3,3716.8,3716.7,10.45845882]
[1753005225376,11.97733172,3716.8,3716.7,10.45845882]
[1753005226468,13.20733172,3716.8,3716.7,10.45845882]
[1753005227969,14.43733172,3716.8,3716.7,10.45845882]
[1753005229151,14.43733172,3716.8,3716.7,10.00095882]
[1753005229565,15.66733172,3716.8,3716.7,10.00095882]
[1753005230149,15.66733172,3716.8,3716.7,9.99895882]
[1753005230948,16.89733172,3716.8,3716.7,9.99895882]
[1753005231479,16.89733172,3716.8,3716.7,10.45645882]
[1753005232351,18.12733172,3716.8,3716.7,10.45645882]
[1753005233883,19.35733172,3716.8,3716.7,10.45645882]
[1753005235287,20.58733172,3716.8,3716.7,10.45645882]
[1753005235483,20.58733172,3716.8,3716.7,9.99895882]
[1753005235676,20.58733172,3716.8,3716.7,16.45295882]
[1753005236688,21.81733172,3716.8,3716.7,16.45295882]
[1753005238192,23.04733172,3716.8,3716.7,16.45295882]
[1753005239356,24.27733172,3716.8,3716.7,16.45295882]
[1753005239988,24.27933172,3716.8,3716.7,16.45295882]
[1753005240696,24.27933172,3716.8,3716.7,19.48882865]
[1753005240876,25.95533172,3716.8,3716.7,16.45295882]
[1753005241185,25.95533172,3716.8,3716.7,16.45195882]
[1753005242200,27.18533172,3716.8,3716.7,16.45195882]
[1753005242370,26.73933172,3716.8,3716.7,12.27895882]
[1753005242712,27.18533172,3716.8,3716.7,16.45095882]
[1753005243774,28.41533172,3716.8,3716.7,16.45095882]